fUSD/lending_fUSD_20250618
["ID","MTS","AMOUNT","RATE_DAILY","PERIOD"]
[366452140,1750261215575,-164.98826331,0.00027658,30]
[366452141,1750261215598,-271.38781056,0.00027658,30]
[366452142,1750261215622,-600.0,0.00027658,30]
[366452143,1750261215645,-600.0,0.00027658,30]
[366452144,1750261215671,-600.0,0.00027658,30]
[366452145,1750261215695,-600.0,0.00027658,30]
[366452146,1750261215719,-500.0,0.00027658,30]
[366452147,1750261215744,-500.0,0.00027658,30]
[366452148,1750261215772,-701.45892,0.00027658,30]
[366452149,1750261215799,-164.75444878,0.00027658,30]
[366452150,1750261215841,-500.0,0.00027658,30]
[366452151,1750261215868,-500.0,0.00027658,30]
[366452152,1750261215894,-500.0,0.00027658,30]
[366452153,1750261215919,-500.0,0.00027658,30]
[366452154,1750261215949,-500.0,0.00027658,30]
[366452155,1750261216283,-500.0,0.00027658,30]
[366452156,1750261216320,-500.0,0.00027658,30]
[366452157,1750261216347,-500.0,0.00027658,30]
[366452158,1750261216371,-502.49987205,0.00027658,30]
[366452159,1750261216395,-500.0,0.00027658,30]
[366452160,1750261216420,-500.0,0.00027658,30]
[366452161,1750261216444,-500.0,0.00027658,30]
[366452162,1750261216467,-500.0,0.00027658,30]
[366452163,1750261216490,-500.0,0.00027658,30]
[366452164,1750261216514,-500.0,0.00027658,30]
[366452165,1750261216543,-500.0,0.00027658,30]
[366452166,1750261216567,-500.0,0.00027658,30]
[366452167,1750261216590,-500.0,0.00027658,30]
[366452168,1750261216614,-500.0,0.00027658,30]
[366452169,1750261216637,-500.0,0.00027658,30]
[366452170,1750261216661,-500.0,0.00027658,30]
[366452171,1750261216688,-498.68756413,0.00027658,30]
[366452172,1750261216712,-630.93914685,0.00027658,30]
[366452173,1750261216735,-500.0,0.00027658,30]
[366452174,1750261216759,-1175.46314311,0.0002767,60]
[366452175,1750261248544,-1249.6171217,0.00025146,15]
[366452176,1750261248598,-686.04336111,0.00026417,15]
[366452177,1750261248645,-686.04336111,0.00027072,16]
[366452178,1750261248674,-8530.99,0.00027397,15]
[366452179,1750261248707,-500.0,0.00027452,15]
[366452180,1750261248734,-500.0,0.00027452,15]
[366452181,1750261248763,-824.53685689,0.0002767,60]
[366452182,1750261248790,-500.0,0.0002767,120]
[366452183,1750261248828,-500.0,0.00027726,15]
[366452184,1750261248857,-563.85,0.00027726,15]
[366452185,1750261248897,-686.04336111,0.00027728,17]
[366452186,1750261248928,-391.0,0.0002783,15]
[366452187,1750261248955,-500.0,0.00028,15]
[366452188,1750261248984,-157.18181657,0.00028,120]
[366452189,1750261249012,-253.69412151,0.00028,29]
[366452190,1750261266247,202.46,0.00013699,2]
[366452192,1750261283113,-310.02229322,0.00028544,120]
[366452193,1750261283139,-673.37098851,0.00029,120]
[366452194,1750261283163,-163.0,0.00029,120]
[366452195,1750261283187,-179.0,0.00029,120]
[366452196,1750261283213,-149.60671827,0.0003,120]
[366452197,1750261290059,299.99,0.00021757,7]
[366452198,1750261308782,-1414.84592553,0.00025,14]
[366452199,1750261308812,-325.33996,0.0002554,15]
[366452200,1750261308847,-1898.54006922,0.00027,14]
[366452201,1750261308878,-610.0,0.00027402,14]
[366452202,1750261308906,-918.0,0.00027616,14]
[366452203,1750261308936,-918.0,0.00027616,14]
[366452204,1750261308961,-610.0,0.00027789,14]
[366452205,1750261308988,-391.0,0.0002783,15]
[366452206,1750261309015,-646.30587849,0.00028,29]
[366452207,1750261309041,-500.0,0.00028274,15]
[366452208,1750261309067,-918.0,0.00028307,14]
[366452209,1750261309105,-686.04336111,0.00028383,18]
[366452210,1750261309131,-610.0,0.00028417,14]
[366452211,1750261309157,-500.0,0.00028548,15]
[366452212,1750261309182,-201.0,0.0002859,30]
[366452213,1750261309208,-500.0,0.00028822,15]
[366452214,1750261309235,-610.0,0.00028997,14]
[366452215,1750261309261,-169.92480565,0.00028997,14]
[366452216,1750261354764,-976.5,0.00025631,15]
[366452217,1750261354803,-391.0,0.0002783,15]
[366452218,1750261354832,-748.07519435,0.00028997,14]
[366452219,1750261354858,-192.0,0.00028997,14]
[366452220,1750261354882,-234.0,0.00029,30]
[366452221,1750261354907,-1208.42480565,0.00029,30]
[366452222,1750261377661,-591.57519435,0.00029,30]
[366452223,1750261377704,-201.0,0.0002976,30]
[366452224,1750261377732,-234.0,0.0003,30]
[366452225,1750261377757,-512.33249304,0.0003,60]
[366452226,1750261377781,-752.23313639,0.0003,30]
[366452227,1750261377804,-0.49843713,0.0003,120]
[366452228,1750261377831,-305.09184023,0.0003,60]
[366452229,1750261377855,-300.0,0.0003,30]
[366452230,1750261377878,-1142.93241544,0.0003,30]
[366452231,1750261377902,-457.1807976,0.0003,31]
[366452232,1750261398593,159.34122541,0.0003,60]
[366452233,1750261401881,7.81446041,0.00026449,120]
[366452234,1750261415167,-594.57091296,0.00026417,15]
[366452235,1750261415193,-492.18553959,0.00026449,120]
[366452236,1750261415233,-594.57091296,0.00027072,16]
[366452237,1750261415274,-520.67263449,0.00027728,17]
[366452238,1750261451874,-374.85,0.00025216,120]
[366452239,1750261451919,-500.0,0.00028338,120]
[366452240,1750261504043,-159.3412253,0.0003,60]
[366452241,1750261504069,-159.3412253,0.0003,60]
[366452242,1750261504094,-159.3412253,0.0003,60]
[366452243,1750261504120,-159.3412253,0.0003,60]
[366452244,1750261504146,-159.3412253,0.0003,60]
[366452245,1750261504171,-159.3412253,0.0003,60]
[366452246,1750261504197,-158.9526482,0.0003,60]
[366452247,1750261532135,-0.3885771,0.0003,60]
[366452248,1750261532161,-159.3412253,0.0003,60]
[366452249,1750261532186,-159.3412253,0.0003,60]
[366452250,1750261532210,-159.3412253,0.0003,60]
[366452251,1750261532235,-159.3412253,0.0003,60]
[366452252,1750261532259,-0.2465217,0.0003,60]
[366452253,1750261600104,0.15,0.00026137,120]
[366452254,1750261628658,790.48782636,0.00022,7]
[366452259,1750261726739,723.0,0.0002465,120]
[366452782,1750261823895,150.0,0.0002,21]
[366452783,1750261824027,203.01458,0.0002,21]
[366452788,1750261832560,-2332.81326186,0.00016032,2]
[366452789,1750261832572,-1520.92152721,0.00016032,2]
[366452790,1750261832585,-530.89572595,0.00016032,2]
[366452791,1750261832597,-2320.55671588,0.00016032,2]
[366452792,1750261832607,-304.89,0.00016032,2]
[366452793,1750261832617,-301.31,0.00016032,2]
[366452794,1750261832629,-300.42,0.00016032,2]
[366452795,1750261832639,-1200.0,0.00016131,2]
[366452796,1750261832649,-304.41,0.00016131,2]
[366452797,1750261832659,-304.15,0.00016131,2]
[366452798,1750261832669,-300.97,0.00016132,2]
[366452799,1750261832678,-303.07,0.00016132,2]
[366452800,1750261832688,-303.96,0.00016132,2]
[366452801,1750261832698,-305.77,0.00016132,2]
[366452802,1750261832707,-301.62,0.00016132,2]
[366452803,1750261832717,-300.25,0.00016132,2]
[366452804,1750261832727,-300.43,0.00016132,2]
[366452805,1750261832740,-304.85,0.00016132,2]
[366452806,1750261832750,-301.4,0.00016132,2]
[366452807,1750261832760,-305.13,0.00016132,2]
[366452808,1750261832770,-302.08,0.00016132,2]
[366452809,1750261832779,-304.23,0.00016132,2]
[366452811,1750261832789,-300.0,0.00016231,2]
[366452813,1750261832799,-300.0,0.00016231,2]
[366452814,1750261832808,-28825.51603687,0.00016232,5]
[366452816,1750261832820,-1305.0,0.00016232,5]
[366452852,1750261833222,-34221.84946537,0.00016232,5]
[366452854,1750261833232,-302.58,0.00016232,2]
[366452856,1750261833242,-305.63,0.00016232,2]
[366452858,1750261833252,-305.38,0.00016233,2]
[366452860,1750261833263,-300.52,0.00016233,2]
[366452862,1750261833273,-304.55,0.00016233,2]
[366452864,1750261833282,-302.71,0.00016233,2]
[366452865,1750261833293,-305.0,0.00016233,2]
[366452867,1750261833302,-303.65,0.00016233,2]
[366452869,1750261833312,-302.54,0.00016233,2]
[366452871,1750261833321,-304.81,0.00016233,2]
[366452873,1750261833331,-304.43,0.00016233,2]
[366452876,1750261833342,-304.43,0.00016233,2]
[366452879,1750261833352,-300.44,0.00016333,2]
[366452881,1750261833362,-302.26,0.00016333,2]
[366452883,1750261833372,-302.38,0.00016333,2]
[366452885,1750261833382,-303.25,0.00016333,2]
[366452887,1750261833392,-300.46,0.00016333,2]
[366452889,1750261833401,-304.21,0.00016333,2]
[366452891,1750261833411,-493.33,0.00016333,2]
[366452893,1750261833420,-508.28,0.00016333,2]
[366452894,1750261833430,-498.33,0.00016333,2]
[366452896,1750261833440,-303.54,0.00016334,2]
[366452898,1750261833450,-496.78,0.00016334,2]
[366452900,1750261833460,-509.36,0.00016334,2]
[366452902,1750261833471,-303.43,0.00016334,2]
[366452904,1750261833481,-498.09,0.00016334,2]
[366452906,1750261833491,-302.9,0.00016334,2]
[366452908,1750261833502,-304.38,0.00016334,2]
[366452909,1750261833512,-499.46,0.00016334,2]
[366452911,1750261833522,-508.18,0.00016334,2]
[366452913,1750261833532,-490.21,0.00016334,2]
[366452915,1750261833543,-501.49,0.00016334,2]
[366452917,1750261833554,-494.03,0.00016335,2]
[366452919,1750261833564,-304.71,0.00016335,2]
[366452921,1750261833574,-499.06,0.00016335,2]
[366452922,1750261833585,-491.54,0.00016335,2]
[366452924,1750261833595,-300.83,0.00016335,2]
[366452926,1750261833605,-491.01,0.00016335,2]
[366452928,1750261833615,-506.95,0.00016335,2]
[366452930,1750261833625,-301.97,0.00016335,2]
[366452932,1750261833635,-500.16,0.00016335,2]
[366452933,1750261833645,-496.71,0.00016335,2]
[366452934,1750261833655,-301.77,0.00016335,2]
[366452936,1750261833666,-506.41,0.00016335,2]
[366452938,1750261833675,-300.58,0.00016335,2]
[366452939,1750261833685,-135.98029401,0.00016335,2]
[366452941,1750261833698,-366.27970599,0.00016335,2]
[366452943,1750261833708,-505.02,0.00016335,2]
[366452945,1750261833718,-151.0,0.00016426,2]
[366452947,1750261833728,-151.0,0.00016426,2]
[366452949,1750261833737,-151.0,0.00016426,2]
[366452951,1750261833747,-151.0,0.00016426,2]
[366452952,1750261833757,-154.65,0.00016426,2]
[366452954,1750261833767,-302.45,0.00016435,2]
[366452956,1750261833777,-495.79,0.00016435,2]
[366452958,1750261833787,-498.74,0.00016435,2]
[366452960,1750261833797,-305.48,0.00016435,2]
[366452962,1750261833809,-301.23,0.00016435,2]
[366452963,1750261833820,-503.77,0.00016436,2]
[366452965,1750261833830,-501.35,0.00016436,2]
[366452967,1750261833840,-503.71,0.00016436,2]
[366452969,1750261833850,-501.32,0.00016436,2]
[366452971,1750261833860,-493.23,0.00016436,2]
[366452973,1750261833870,-505.11,0.00016436,2]
[366452975,1750261833880,-300.46,0.00016436,2]
[366452978,1750261833896,-495.87,0.00016436,2]
[366452979,1750261833908,-305.97,0.00016436,2]
[366452981,1750261833917,-495.33,0.00016436,2]
[366452984,1750261833927,-490.73,0.00016436,2]
[366452985,1750261833937,-301.58,0.00016436,2]
[366452988,1750261833949,-495.24,0.00016436,2]
[366452990,1750261833959,-302.18,0.00016436,2]
[366452992,1750261833969,-494.17,0.00016436,2]
[366452994,1750261833979,-506.84,0.00016436,2]
[366452996,1750261833990,-301.54,0.00016436,2]
[366452998,1750261834000,-503.41,0.00016436,2]
[366453000,1750261834010,-506.32,0.00016436,2]
[366453002,1750261834021,-304.74,0.00016436,2]
[366453004,1750261834031,-493.36,0.00016436,2]
[366453006,1750261834040,-503.06,0.00016436,2]
[366453008,1750261834051,-304.1,0.00016436,2]
[366453010,1750261834061,-494.03,0.00016436,2]
[366453012,1750261834072,-301.49,0.00016436,2]
[366453014,1750261834082,-504.4,0.00016437,2]
[366453016,1750261834093,-500.22,0.00016437,2]
[366453018,1750261834104,-303.56,0.00016437,2]
[366453020,1750261834114,-495.71,0.00016437,2]
[366453021,1750261834124,-2076.5302859,0.00016437,2]
[366453471,1750261838802,-7234.48007199,0.00016437,2]
[366453474,1750261838814,-1137.14964211,0.00016437,2]
[366453476,1750261838825,-496.44,0.00016438,2]
[366453478,1750261838836,-302.88,0.00016438,2]
[366453480,1750261838845,-499.44,0.00016438,2]
[366453481,1750261838855,-130.59035789,0.00016438,2]
[366453484,1750261838868,-370.39964211,0.00016438,2]
[366453486,1750261838878,-301.92,0.00016438,2]
[366453488,1750261838891,-232.94535794,0.00016438,2]
[366453500,1750261839000,-492.51,0.00016032,2]
[366453502,1750261839010,-271.81464206,0.00016438,2]
[366453505,1750261839021,-507.94,0.00016438,2]
[366453506,1750261839030,-497.75,0.00016438,2]
[366453508,1750261839040,-300.32,0.00016438,2]
[366453511,1750261839049,-299.75928,0.00016567,2]
[366453512,1750261839059,-157.67361874,0.000166,2]
[366453515,1750261839072,-135.11638126,0.000166,2]
[366453517,1750261839082,-2051.26,0.00016783,2]
[366453519,1750261839092,-2024.34,0.00016806,2]
[366453521,1750261839102,-344.14326342,0.0001681,2]
[366453523,1750261839115,-30.70673658,0.0001681,2]
[366453525,1750261839124,-151.0,0.0001687,2]
[366453527,1750261839135,-86.04452973,0.0001687,2]
[366453642,1750261840586,-121.35547027,0.0001687,2]
[366453645,1750261840596,-151.0,0.0001687,2]
[366453647,1750261840605,-151.0,0.0001687,2]
[366453650,1750261840615,-500.0,0.0001687,2]
[366453653,1750261840625,-500.0,0.0001687,2]
[366453657,1750261840634,-500.0,0.0001687,2]
[366453660,1750261840645,-1000.0,0.0001687,2]
[366453663,1750261840655,-500.0,0.0001687,2]
[366453665,1750261840664,-1000.0,0.0001687,2]
[366453668,1750261840674,-1000.0,0.0001687,2]
[366453671,1750261840683,-500.0,0.0001687,2]
[366453674,1750261840692,-1000.0,0.0001687,2]
[366453677,1750261840703,-1957.856,0.0001687,2]
[366453680,1750261840712,-500.0,0.0001687,2]
[366453683,1750261840725,-1000.0,0.0001687,2]
[366453686,1750261840734,-500.0,0.0001687,2]
[366453689,1750261840744,-668.65185757,0.0001687,2]
[366453692,1750261840754,-1000.0,0.0001687,2]
[366453694,1750261840763,-500.0,0.0001687,2]
[366453697,1750261840773,-1000.0,0.0001687,2]
[366453700,1750261840782,-500.0,0.0001687,2]
[366453703,1750261840792,-1000.0,0.0001687,2]
[366453706,1750261840802,-500.0,0.0001687,2]
[366453709,1750261840812,-1000.0,0.0001687,2]
[366453712,1750261840822,-500.0,0.0001687,2]
[366453715,1750261840833,-1000.0,0.0001687,2]
[366453718,1750261840842,-500.0,0.0001687,2]
[366453721,1750261840852,-914.30179109,0.0001687,2]
[366453724,1750261840862,-500.0,0.0001687,2]
[366453727,1750261840872,-500.0,0.0001687,2]
[366453730,1750261840882,-500.0,0.0001687,2]
[366453782,1750261841169,-151.0,0.0001687,2]
[366453791,1750261841213,-500.0,0.0001687,2]
[366453793,1750261841223,-500.0,0.0001687,2]
[366453796,1750261841232,-500.0,0.0001687,2]
[366453799,1750261841242,-500.0,0.0001687,2]
[366453802,1750261841253,-300.0,0.0001687,2]
[366453805,1750261841262,-37.44526647,0.0001687,2]
[366453822,1750261841341,-462.55473353,0.0001687,2]
[366453825,1750261841350,-300.0,0.0001687,2]
[366453828,1750261841359,-500.0,0.0001687,2]
[366453831,1750261841369,-151.0,0.0001687,2]
[366453834,1750261841379,-300.0,0.0001687,2]
[366453837,1750261841389,-600.0,0.0001687,2]
[366453840,1750261841398,-151.0,0.0001687,2]
[366453843,1750261841408,-300.0,0.0001687,2]
[366453846,1750261841417,-151.0,0.0001687,2]
[366453849,1750261841427,-300.0,0.0001687,2]
[366453852,1750261841437,-151.0,0.0001687,2]
[366453855,1750261841447,-300.0,0.0001687,2]
[366453858,1750261841457,-151.0,0.0001687,2]
[366453861,1750261841467,-300.0,0.0001687,2]
[366453864,1750261841477,-151.0,0.0001687,2]
[366453867,1750261841490,-300.0,0.0001687,2]
[366453870,1750261841500,-151.0,0.0001687,2]
[366453873,1750261841509,-300.0,0.0001687,2]
[366453876,1750261841519,-151.0,0.0001687,2]
[366453879,1750261841529,-300.0,0.0001687,2]
[366453882,1750261841539,-300.0,0.0001687,2]
[366453885,1750261841548,-151.0,0.0001687,2]
[366453888,1750261841558,-300.0,0.0001687,2]
[366453891,1750261841568,-151.0,0.0001687,2]
[366453894,1750261841578,-300.0,0.0001687,2]
[366453897,1750261841588,-300.0,0.0001687,2]
[366453900,1750261841598,-300.0,0.0001687,2]
[366453903,1750261841607,-151.39857374,0.0001687,2]
[366453906,1750261841616,-537.57709779,0.000169,2]
[366453909,1750261841627,-1000.0,0.00016903,2]
[366453912,1750261841637,-178.87399872,0.00016925,2]
[366453914,1750261841646,-151.0,0.00017418,2]
[366453916,1750261841656,-537.57709761,0.0001759,2]
[366453919,1750261841666,-150.0,0.00017877,2]
[366453922,1750261841676,-150.0,0.00017877,2]
[366453926,1750261841687,-2190.7298,0.000179,2]
[366453930,1750261841698,-151.0,0.00017966,2]
[366453933,1750261841708,-564.36,0.00018,2]
[366453936,1750261841718,-166.61,0.00018017,2]
[366453939,1750261841729,-250.0,0.0001808,2]
[366453941,1750261841739,-215.0738,0.00018239,2]
[366453943,1750261841749,-693.3919763,0.00018239,2]
[366453947,1750261841760,-156.587,0.00018239,2]
[366453950,1750261841770,-537.57709761,0.00018279,2]
[366453952,1750261841779,-666.0,0.00018305,2]
[366453955,1750261841790,-151.0,0.00018514,2]
[366453959,1750261841800,-168.0,0.00018762,2]
[366453962,1750261841810,-170.05,0.00018803,2]
[366453964,1750261841821,-150.0,0.0001887,2]
[366453968,1750261841832,-648.75749389,0.00018877,2]
[366453971,1750261841842,-374.85,0.00018912,2]
[366453974,1750261841852,-537.57709761,0.00018969,2]
[366453976,1750261841862,-1000.0,0.00019016,2]
[366453979,1750261841872,-648.7574939,0.00019062,2]
[366453982,1750261841882,-151.0,0.00019178,2]
[366453985,1750261841897,-522.3,0.00019178,2]
[366453988,1750261841907,-150.5,0.00019193,2]
[366453991,1750261841917,-833.92080167,0.00019283,2]
[366453994,1750261841927,-520.59292803,0.000193,2]
[366454176,1750261842875,-1332.85,0.00026137,120]
[366454276,1750261843417,-303.64,0.00016032,2]
[366454278,1750261843427,-71.77777197,0.000193,2]
[366454280,1750261843436,-162.75021553,0.000193,2]
[366454281,1750261843446,-49.49488408,0.000193,2]
[366454285,1750261843457,-396.51506931,0.000193,2]
[366454294,1750261843518,-1050.48524661,0.000193,2]
[366454295,1750261843528,-1700.82931368,0.000193,2]
[366454296,1750261843537,-5000.0,0.000193,2]
[366454297,1750261843546,-568.15258017,0.000193,2]
[366454298,1750261843617,-3340.39208452,0.000193,2]
[366454299,1750261843626,-162.5846469,0.000193,2]
[366454300,1750261843635,-170.92499268,0.000193,2]
[366454302,1750261843645,-500.0,0.00019373,2]
[366454304,1750261843655,-152.71916323,0.00019373,2]
[366454306,1750261843665,-587.34850112,0.00019373,2]
[366454308,1750261843674,-242.19191018,0.00019373,2]
[366454606,1750261846443,-257.80808982,0.00019373,2]
[366454608,1750261846454,-500.0,0.00019373,2]
[366454610,1750261846463,-500.0,0.00019373,2]
[366454612,1750261846473,-245.81147106,0.00019373,2]
[366454614,1750261846484,-254.18852894,0.00019373,2]
[366454616,1750261846494,-500.0,0.00019373,2]
[366454618,1750261846503,-500.0,0.00019373,2]
[366454620,1750261846513,-350.0,0.00019381,2]
[366454622,1750261846522,-168.0,0.00019385,2]
[366454624,1750261846532,-150.36,0.0001939,2]
[366454626,1750261846541,-150.36,0.0001939,2]
[366454628,1750261846551,-150.36,0.0001939,2]
[366454631,1750261846560,-150.36,0.0001939,2]
[366454633,1750261846570,-150.36,0.0001939,2]
[366454635,1750261846581,-150.36,0.0001939,2]
[366454636,1750261846591,-150.36,0.0001939,2]
[366454638,1750261846600,-150.36,0.0001939,2]
[366454640,1750261846610,-150.36,0.0001939,2]
[366454642,1750261846620,-658.926231,0.00019399,2]
[366454644,1750261846630,-183.88,0.00019399,2]
[366454647,1750261846640,-23052.68832204,0.000194,2]
[366454821,1750261850561,-11972.52112186,0.000194,2]
[366454822,1750261850572,-2417.24914516,0.000194,2]
[366454823,1750261850585,-479.89415,0.000194,2]
[366454824,1750261850597,-3228.73607999,0.000194,2]
[366454825,1750261850653,-10423.63220539,0.000194,2]
[366454826,1750261850663,-5938.51389372,0.000194,2]
[366454827,1750261850674,-4343.09858,0.000194,2]
[366454828,1750261850764,-10738.86928894,0.000194,2]
[366454830,1750261976259,0.15,0.00027,120]
[366454831,1750261986393,-249515.879438,0.000224,7]
[366454832,1750261986416,-833.92080167,0.000224,7]
[366454833,1750262293178,0.19976033,0.00022263,7]
[366454834,1750262359200,-1865.57,0.00024685,30]
[366454836,1750262380768,-500.0,0.0002653,120]
[366454837,1750262417039,-1333.0,0.00026137,120]
[366454838,1750262452277,202.89,0.00013699,2]
[366454849,1750262853384,150.0,0.00016,2]
[366454850,1750262855407,0.43,0.00024685,30]
[366454851,1750262855433,300.0,0.00024685,30]
[366454868,1750263022949,150.0,0.0002,21]
[366454869,1750263023118,150.0,0.0002,21]
[366454870,1750263023467,150.0,0.0002,21]
[366454871,1750263023657,184.92604,0.0002,21]
[366454877,1750263031861,-600.0,0.00016026,2]
[366454878,1750263031871,-200.0,0.00016027,2]
[366454879,1750263031883,-1000.0,0.00016027,2]
[366454880,1750263031893,-303.72,0.00016028,2]
[366454881,1750263031903,-304.39,0.00016028,2]
[366454882,1750263031913,-303.61,0.00016028,2]
[366454883,1750263031923,-303.12,0.00016028,2]
[366454884,1750263031931,-304.89,0.00016028,2]
[366454885,1750263031940,-301.69,0.00016028,2]
[366454886,1750263031949,-304.36,0.00016028,2]
[366454888,1750263031959,-300.59,0.00016028,2]
[366454889,1750263031969,-301.74,0.00016028,2]
[366454891,1750263031979,-302.38,0.00016028,2]
[366454893,1750263031988,-305.01,0.00016028,2]
[366454895,1750263031998,-304.28,0.00016028,2]
[366454897,1750263032008,-304.47,0.00016028,2]
[366454899,1750263032018,-304.51,0.00016028,2]
[366454901,1750263032027,-303.12,0.00016028,2]
[366454903,1750263032037,-304.57,0.00016028,2]
[366454905,1750263032047,-302.25,0.00016028,2]
[366454907,1750263032057,-302.83,0.00016028,2]
[366454909,1750263032067,-302.82,0.00016029,2]
[366454911,1750263032077,-304.03,0.00016029,2]
[366454913,1750263032088,-509.46,0.00016029,2]
[366454915,1750263032097,-503.26,0.00016029,2]
[366454917,1750263032107,-507.13,0.00016029,2]
[366454919,1750263032118,-302.16,0.00016029,2]
[366454921,1750263032128,-300.16,0.00016029,2]
[366454923,1750263032138,-509.48,0.0001603,2]
[366454925,1750263032151,-497.99,0.0001603,2]
[366454927,1750263032160,-497.8,0.0001603,2]
[366454929,1750263032171,-506.27,0.0001603,2]
[366454931,1750263032181,-303.24,0.0001603,2]
[366454933,1750263032192,-501.8,0.0001603,2]
[366454936,1750263032202,-498.75,0.0001603,2]
[366454938,1750263032212,-304.52,0.0001603,2]
[366454939,1750263032222,-502.93,0.0001603,2]
[366454941,1750263032232,-303.83,0.0001603,2]
[366454943,1750263032242,-504.34,0.0001603,2]
[366454945,1750263032251,-90.74610001,0.0001603,2]
[366454990,1750263032679,-414.76389999,0.0001603,2]
[366454992,1750263032689,-301.34,0.0001603,2]
[366454994,1750263032700,-190.29512767,0.0001603,2]
[366454996,1750263032712,-316.68487233,0.0001603,2]
[366454998,1750263032721,-504.75,0.0001603,2]
[366455000,1750263032731,-302.92,0.0001603,2]
[366455002,1750263032741,-495.48,0.0001603,2]
[366455004,1750263032751,-499.78,0.0001603,2]
[366455006,1750263032761,-305.31,0.0001603,2]
[366455008,1750263032770,-501.02,0.0001603,2]
[366455010,1750263032779,-509.97,0.0001603,2]
[366455012,1750263032789,-301.92,0.0001603,2]
[366455014,1750263032798,-501.38,0.0001603,2]
[366455016,1750263032807,-500.54,0.0001603,2]
[366455018,1750263032817,-300.6,0.0001603,2]
[366455020,1750263032827,-496.58,0.0001603,2]
[366455022,1750263032836,-506.97,0.0001603,2]
[366455024,1750263032844,-304.26,0.0001603,2]
[366455026,1750263032854,-498.14,0.0001603,2]
[366455028,1750263032864,-494.71,0.0001603,2]
[366455030,1750263032873,-302.55,0.0001603,2]
[366455032,1750263032883,-300.49,0.0001603,2]
[366455034,1750263032892,-492.67,0.0001603,2]
[366455036,1750263032902,-493.48,0.0001603,2]
[366455038,1750263032911,-509.8,0.00016031,2]
[366455040,1750263032920,-500.4,0.00016031,2]
[366455042,1750263032930,-305.75,0.00016031,2]
[366455044,1750263032939,-491.93,0.00016031,2]
[366455046,1750263032949,-499.48,0.00016031,2]
[366455048,1750263032959,-303.22,0.00016031,2]
[366455049,1750263032968,-501.03,0.00016031,2]
[366455050,1750263032978,-500.12,0.00016031,2]
[366455052,1750263032988,-301.23,0.00016031,2]
[366455054,1750263032997,-502.11,0.00016031,2]
[366455056,1750263033008,-491.48,0.00016031,2]
[366455058,1750263033017,-302.33,0.00016031,2]
[366455060,1750263033027,-490.77,0.00016031,2]
[366455062,1750263033037,-88.68679323,0.00016031,2]
[366455072,1750263033126,-408.60320677,0.00016031,2]
[366455074,1750263033136,-277.08843362,0.00016031,2]
[366455076,1750263033147,-26.90156638,0.00016031,2]
[366455078,1750263033156,-506.61,0.00016031,2]
[366455080,1750263033166,-305.99,0.00016031,2]
[366455082,1750263033176,-305.95,0.00016031,2]
[366455084,1750263033186,-491.5,0.00016031,2]
[366455086,1750263033197,-305.94,0.00016031,2]
[366455088,1750263033206,-509.48,0.00016032,2]